fUST/lending_fUST_20250226
["ID","MTS","AMOUNT","RATE_DAILY","PERIOD"]
[354577331,1740579649087,-500.0,0.00059726,120]
[354577332,1740579649152,-500.0,0.00059726,120]
[354577333,1740579649220,-500.0,0.00059726,120]
[354577334,1740579649284,-500.0,0.00059726,120]
[354577335,1740579649352,-500.0,0.00059726,120]
[354577336,1740579649426,-3006.93,0.00059726,120]
[354577337,1740579649493,-500.0,0.00059726,120]
[354577338,1740579649566,-707.31,0.00059726,120]
[354577339,1740579649636,-500.0,0.00059726,120]
[354577340,1740579649706,-500.0,0.00059726,120]
[354577341,1740579649779,-500.0,0.00059726,120]
[354577342,1740579649852,-1219.6,0.00059726,120]
[354577343,1740579649918,-500.0,0.00059726,120]
[354577344,1740579649987,-500.0,0.00059726,120]
[354577345,1740579650052,-503.38610217,0.00059726,120]
[354577346,1740579650116,-500.0,0.00059726,120]
[354577347,1740579650182,-1336.54,0.00059726,120]
[354577348,1740579650247,-632.85,0.00059726,120]
[354577349,1740579650307,-500.0,0.00059726,120]
[354577350,1740579650370,-500.0,0.00059726,120]
[354577351,1740579650435,-500.0,0.00059726,120]
[354577352,1740579650503,-940.1,0.00059726,120]
[354577353,1740579650570,-957.71,0.00059726,120]
[354577354,1740579650638,-536.62,0.00059726,120]
[354577355,1740579650705,-500.0,0.00059726,120]
[354577356,1740579650774,-500.0,0.00059726,120]
[354577357,1740579650837,-502.84178624,0.00059726,120]
[354577358,1740579650897,-500.0,0.00059726,120]
[354577359,1740579650962,-250.0,0.00059726,120]
[354577360,1740579651027,-500.0,0.00059726,120]
[354577361,1740579651090,-509.25657923,0.00059726,120]
[354577362,1740579651154,-500.0,0.00059726,120]
[354577363,1740579651216,-1209.39,0.00059726,120]
[354577364,1740579651280,-948.33,0.00059726,120]
[354577365,1740579651346,-595.05,0.00059726,120]
[354577366,1740579651421,-816.0,0.00059726,120]
[354577367,1740579651487,-500.0,0.00059726,120]
[354577368,1740579651554,-1168.06,0.00059726,120]
[354577369,1740579651622,-500.0,0.00059726,120]
[354577370,1740579651687,-933.54,0.00059726,120]
[354577371,1740579651751,-500.0,0.00059726,120]
[354577372,1740579651811,-500.0,0.00059726,120]
[354577373,1740579651877,-1182.23,0.00059726,120]
[354577374,1740579651940,-500.0,0.00059726,30]
[354577375,1740579652001,-1802.97,0.00059726,120]
[354577376,1740579652061,-1908.47,0.00059726,120]
[354577377,1740579652121,-153.63577998,0.00059726,120]
[354577378,1740579652184,-667.46,0.00059726,120]
[354577379,1740579652246,-766.23,0.00059726,120]
[354577380,1740579652308,-500.0,0.00059726,120]
[354577381,1740579652367,-500.0,0.00059726,120]
[354577382,1740579652431,-500.0,0.00059726,120]
[354577383,1740579652494,-1972.1,0.00059726,120]
[354577384,1740579652556,-500.0,0.00059726,120]
[354577385,1740579652615,-611.49,0.00059726,120]
[354577386,1740579652678,-500.0,0.00059726,30]
[354577387,1740579652739,-500.0,0.00059726,120]
[354577388,1740579652800,-500.0,0.00059726,120]
[354577389,1740579652858,-615.91,0.00059726,120]
[354577390,1740579652919,-500.0,0.00059726,120]
[354577391,1740579652979,-500.0,0.00059726,120]
[354577392,1740579653037,-500.0,0.00059726,120]
[354577393,1740579653096,-500.0,0.00059726,120]
[354577394,1740579653158,-500.0,0.00059726,120]
[354577395,1740579653222,-500.0,0.00059726,120]
[354577396,1740579653283,-500.0,0.00059726,120]
[354577397,1740579653347,-500.0,0.00059726,120]
[354577398,1740579653420,-500.0,0.00059726,120]
[354577399,1740579653627,-500.0,0.00059726,120]
[354577400,1740579653690,-500.0,0.00059726,120]
[354577401,1740579653753,-1786.93,0.00059726,120]
[354577402,1740579653812,-681.1,0.00059726,60]
[354577403,1740579653873,-337.96992551,0.00059726,120]
[354577404,1740579653937,-500.0,0.00059726,120]
[354577405,1740579654002,-500.0,0.00059726,120]
[354577406,1740579654061,-500.0,0.00059726,120]
[354577407,1740579654123,-4303.11,0.00059726,120]
[354577408,1740579654184,-500.0,0.00059726,120]
[354577409,1740579654246,-752.79,0.00059726,120]
[354577410,1740579654306,-500.0,0.00059726,120]
[354577411,1740579654374,-500.0,0.00059726,120]
[354577412,1740579654443,-2651.64,0.00059726,120]
[354577413,1740579654506,-500.0,0.00059726,120]
[354577414,1740579654569,-500.0,0.00059726,120]
[354577415,1740579654628,-203.4640835,0.00059726,120]
[354577416,1740579654694,-500.0,0.00059726,120]
[354577417,1740579654755,-500.0,0.00059726,120]
[354577418,1740579654819,-899.43,0.00059726,120]
[354577419,1740579654879,-500.0,0.00059726,120]
[354577420,1740579654936,-500.0,0.00059726,120]
[354577421,1740579654993,-500.0,0.00059726,120]
[354577422,1740579655050,-500.0,0.00059726,120]
[354577423,1740579655107,-1779.91,0.00059726,120]
[354577424,1740579655162,-500.0,0.00059726,120]
[354577425,1740579655220,-2802.84,0.00059726,120]
[354577426,1740579655278,-500.0,0.00059726,120]
[354577427,1740579655337,-500.0,0.00059726,120]
[354577428,1740579655401,-503.34517378,0.00059726,120]
[354577429,1740579655468,-500.0,0.00059726,120]
[354577430,1740579655529,-542.38,0.00059726,120]
[354577431,1740579655588,-500.0,0.00059726,120]
[354577432,1740579655647,-500.0,0.00059726,120]
[354577433,1740579655712,-500.0,0.00059726,120]
[354577434,1740579655772,-500.0,0.00059726,120]
[354577435,1740579655833,-500.0,0.00059726,120]
[354577436,1740579655892,-500.0,0.00059726,120]
[354577437,1740579655954,-797.55,0.00059726,120]
[354577438,1740579656013,-500.0,0.00059726,120]
[354577439,1740579656075,-302.43428716,0.00059726,120]
[354577440,1740579656136,-1239.34,0.00059726,120]
[354577441,1740579656206,-500.0,0.00059726,120]
[354577442,1740579656274,-892.74,0.00059726,120]
[354577443,1740579656340,-500.0,0.00059726,120]
[354577444,1740579656416,-500.0,0.00059726,120]
[354577445,1740579656490,-500.0,0.00059726,120]
[354577446,1740579656555,-500.0,0.00059726,120]
[354577447,1740579656612,-500.0,0.00059726,120]
[354577448,1740579656674,-500.0,0.00059726,120]
[354577449,1740579656736,-500.0,0.00059726,120]
[354577450,1740579656797,-598.83417877,0.00059726,120]
[354577451,1740579656859,-1800.49,0.00059726,120]
[354577452,1740579656917,-591.9119507,0.00059726,120]
[354577453,1740579656981,-500.0,0.00059726,120]
[354577454,1740579657041,-500.0,0.00059726,120]
[354577455,1740579657104,-500.0,0.00059726,120]
[354577456,1740579657165,-500.0,0.00059726,120]
[354577457,1740579657227,-500.0,0.00059726,120]
[354577458,1740579657287,-2734.29,0.00059726,120]
[354577459,1740579657348,-500.0,0.00059726,120]
[354577460,1740579657418,-637.89269784,0.00059726,120]
[354577461,1740579657482,-507.25396328,0.00059726,120]
[354577462,1740579657548,-500.0,0.00059726,120]
[354577463,1740579657610,-507.27600822,0.00059726,120]
[354577464,1740579657675,-2842.07,0.00059726,120]
[354577465,1740579657737,-1400.86,0.00059726,120]
[354577466,1740579657798,-500.0,0.00059726,120]
[354577467,1740579657856,-500.0,0.00059726,120]
[354577468,1740579657917,-500.0,0.00059726,120]
[354577469,1740579657981,-506.44,0.00059726,120]
[354577470,1740579658044,-500.0,0.00059726,45]
[354577471,1740579658107,-500.0,0.00059726,120]
[354577472,1740579658166,-443.58807687,0.00059726,120]
[354577473,1740579658228,-500.0,0.00059726,120]
[354577474,1740579658286,-938.59,0.00059726,120]
[354577475,1740579658346,-500.0,0.00059726,120]
[354577476,1740579658414,-500.0,0.00059726,120]
[354577477,1740579658477,-500.0,0.00059726,120]
[354577478,1740579658540,-500.0,0.00059726,120]
[354577479,1740579658604,-500.0,0.00059726,120]
[354577480,1740579658668,-1785.96,0.00059726,120]
[354577481,1740579658730,-568.31943033,0.00059726,120]
[354577482,1740579658794,-1030.22,0.00059726,120]
[354577483,1740579658859,-500.0,0.00059726,120]
[354577484,1740579658919,-556.52,0.00059726,120]
[354577485,1740579658979,-500.0,0.00059726,120]
[354577486,1740579659038,-1000.0,0.00059726,30]
[354577487,1740579659099,-767.42,0.00059726,120]
[354577488,1740579659161,-500.0,0.00059726,120]
[354577489,1740579659221,-500.0,0.00059726,120]
[354577490,1740579659281,-1286.42,0.00059726,120]
[354577491,1740579659338,-1765.38,0.00059726,120]
[354577492,1740579659403,-1300.99,0.00059726,120]
[354577493,1740579659469,-500.0,0.00059726,120]
[354577494,1740579659679,-500.0,0.00059726,120]
[354577495,1740579659740,-500.0,0.00059726,120]
[354577496,1740579659799,-1575.22,0.00059726,120]
[354577497,1740579659863,-500.0,0.00059726,120]
[354577498,1740579659926,-500.0,0.00059726,120]
[354577499,1740579659992,-500.0,0.00059726,120]
[354577500,1740579660055,-3218.34,0.00059726,120]
[354577501,1740579660117,-500.0,0.00059726,120]
[354577502,1740579660185,-500.0,0.00059726,120]
[354577503,1740579660250,-500.0,0.00059726,120]
[354577504,1740579660315,-500.0,0.00059726,120]
[354577505,1740579660387,-500.0,0.00059726,120]
[354577506,1740579660457,-500.0,0.00059726,120]
[354577507,1740579660529,-154.47182886,0.00059726,120]
[354577508,1740579660592,-1991.81,0.00059726,120]
[354577509,1740579660657,-500.0,0.00059726,120]
[354577510,1740579660721,-500.0,0.00059726,120]
[354577511,1740579660784,-946.08,0.00059726,120]
[354577512,1740579660847,-500.0,0.00059726,120]
[354577513,1740579660907,-500.0,0.00059726,120]
[354577514,1740579660967,-500.0,0.00059726,120]
[354577515,1740579661024,-859.54,0.00059726,120]
[354577516,1740579661083,-729.35,0.00059726,30]
[354577517,1740579661141,-884.52,0.00059726,120]
[354577518,1740579661201,-500.0,0.00059726,120]
[354577519,1740579661263,-648.85,0.00059726,120]
[354577520,1740579661324,-898.87,0.00059726,120]
[354577521,1740579661389,-548.40654811,0.00059726,120]
[354577522,1740579661462,-500.0,0.00059726,120]
[354577523,1740579661527,-500.0,0.00059726,120]
[354577524,1740579661609,-500.0,0.00059726,120]
[354577525,1740579661685,-500.0,0.00059726,120]
[354577526,1740579661755,-500.0,0.00059726,120]
[354577527,1740579661820,-500.0,0.00059726,120]
[354577528,1740579661885,-500.0,0.00059726,120]
[354577529,1740579661951,-500.0,0.00059726,120]
[354577530,1740579662014,-336.63753871,0.00059726,120]
[354577531,1740579662079,-562.32,0.00059726,120]
[354577532,1740579662146,-500.0,0.00059726,120]
[354577533,1740579662214,-500.0,0.00059726,120]
[354577534,1740579662291,-500.0,0.00059726,120]
[354577535,1740579662360,-500.0,0.00059726,120]
[354577536,1740579662444,-500.0,0.00059726,120]
[354577537,1740579662521,-500.0,0.00059726,120]
[354577538,1740579662594,-500.0,0.00059726,120]
[354577539,1740579662678,-500.0,0.00059726,120]
[354577540,1740579662752,-500.0,0.00059726,120]
[354577541,1740579662821,-500.0,0.00059726,120]
[354577542,1740579662886,-1724.74,0.00059726,120]
[354577543,1740579662945,-4235.15,0.00059726,120]
[354577544,1740579663004,-500.0,0.00059726,120]
[354577545,1740579663065,-500.0,0.00059726,120]
[354577546,1740579663132,-500.0,0.00059726,120]
[354577547,1740579663196,-518.96516754,0.00059726,120]
[354577548,1740579663264,-542.4,0.00059726,120]
[354577549,1740579663332,-500.0,0.00059726,120]
[354577550,1740579663405,-500.0,0.00059726,120]
[354577551,1740579663478,-511.48938265,0.00059726,120]
[354577552,1740579663549,-500.0,0.00059726,120]
[354577553,1740579663617,-500.0,0.00059726,120]
[354577554,1740579663683,-500.0,0.00059726,120]
[354577555,1740579663753,-500.0,0.00059726,120]
[354577556,1740579663819,-507.24227474,0.00059726,120]
[354577557,1740579663886,-500.0,0.00059726,120]
[354577558,1740579663951,-500.0,0.00059726,120]
[354577559,1740579664017,-500.0,0.00059726,120]
[354577560,1740579664082,-500.0,0.00059726,120]
[354577561,1740579664148,-500.0,0.00059726,120]
[354577562,1740579664214,-500.0,0.00059726,120]
[354577563,1740579664275,-500.0,0.00059726,120]
[354577564,1740579664342,-25069.92,0.00059726,120]
[354577565,1740579664411,-971.77,0.00059726,120]
[354577566,1740579664480,-500.0,0.00059726,120]
[354577567,1740579664543,-500.0,0.00059726,120]
[354577568,1740579664607,-500.0,0.00059726,120]
[354577569,1740579664674,-500.0,0.00059726,120]
[354577570,1740579664737,-500.70415903,0.00059726,120]
[354577571,1740579664802,-1464.97,0.00059726,120]
[354577572,1740579664863,-1127.86,0.00059726,120]
[354577573,1740579664925,-500.0,0.00059726,120]
[354577574,1740579664985,-500.0,0.00059726,120]
[354577575,1740579665060,-2103.01,0.00059726,120]
[354577576,1740579665136,-500.0,0.00059726,120]
[354577577,1740579665203,-2245.58,0.00059726,120]
[354577578,1740579665277,-500.0,0.00059726,120]
[354577579,1740579665349,-500.0,0.00059726,120]
[354577580,1740579665424,-500.0,0.00059726,120]
[354577581,1740579665507,-503.40879922,0.00059726,120]
[354577582,1740579665580,-502.42176256,0.00059726,120]
[354577583,1740579665650,-500.0,0.00059726,120]
[354577584,1740579665722,-500.0,0.00059726,120]
[354577585,1740579665787,-500.0,0.00059726,120]
[354577586,1740579665849,-500.0,0.00059726,120]
[354577587,1740579665919,-500.0,0.00059726,120]
[354577588,1740579665990,-500.0,0.00059726,120]
[354577589,1740579666063,-500.0,0.00059726,120]
[354577590,1740579666136,-1665.19,0.00059726,120]
[354577591,1740579666205,-500.0,0.00059726,120]
[354577592,1740579666269,-500.0,0.00059726,120]
[354577593,1740579666337,-662.27,0.00059726,120]
[354577594,1740579666413,-500.0,0.00059726,120]
[354577595,1740579666482,-500.0,0.00059726,120]
[354577596,1740579666552,-1991.15,0.00059726,120]
[354577597,1740579666619,-500.0,0.00059726,120]
[354577598,1740579666687,-500.0,0.00059726,120]
[354577599,1740579666760,-457.40894694,0.00059726,120]
[354577600,1740579666829,-500.0,0.00059726,120]
[354577601,1740579666895,-500.0,0.00059726,120]
[354577602,1740579666964,-602.76,0.00059726,120]
[354577603,1740579667032,-1014.1,0.00059726,120]
[354577604,1740579667100,-2063.02,0.00059726,120]
[354577605,1740579667171,-2284.29,0.00059726,120]
[354577606,1740579667243,-500.0,0.00059726,90]
[354577607,1740579667312,-1049.82,0.00059726,120]
[354577608,1740579667383,-500.0,0.00059726,120]
[354577609,1740579667456,-500.0,0.00059726,120]
[354577610,1740579667528,-500.0,0.00059726,120]
[354577611,1740579667599,-501.23,0.00059726,120]
[354577612,1740579667668,-555.0770785,0.00059726,120]
[354577613,1740579667737,-500.0,0.00059726,120]
[354577614,1740579667802,-500.0,0.00059726,120]
[354577615,1740579667870,-974.57,0.00059726,120]
[354577616,1740579667940,-500.0,0.00059726,120]
[354577617,1740579668003,-1180.21,0.00059726,120]
[354577618,1740579668066,-500.0,0.00059726,120]
[354577619,1740579668132,-621.78,0.00059726,120]
[354577620,1740579668194,-501.79088958,0.00059726,120]
[354577621,1740579668260,-500.0,0.00059726,120]
[354577622,1740579668326,-500.0,0.00059726,120]
[354577623,1740579668391,-500.0,0.00059726,120]
[354577624,1740579668467,-500.0,0.00059726,120]
[354577625,1740579668534,-1139.59,0.00059726,120]
[354577626,1740579668599,-500.0,0.00059726,120]
[354577627,1740579668667,-3247.14,0.00059726,120]
[354577628,1740579668730,-738.52,0.00059726,120]
[354577629,1740579668797,-500.0,0.00059726,120]
[354577630,1740579668871,-500.0,0.00059726,120]
[354577631,1740579668945,-500.0,0.00059726,120]
[354577632,1740579669023,-500.0,0.00059726,120]
[354577633,1740579669094,-500.0,0.00059726,120]
[354577634,1740579669172,-500.0,0.00059726,120]
[354577635,1740579669243,-560.54795736,0.00059726,120]
[354577636,1740579669309,-1403.2,0.00059726,120]
[354577637,1740579669380,-971.11,0.00059726,120]
[354577638,1740579669456,-500.0,0.00059726,120]
[354577639,1740579669533,-2403.15,0.00059726,120]
[354577640,1740579669606,-500.0,0.00059726,120]
[354577641,1740579669675,-500.0,0.00059726,120]
[354577642,1740579669745,-500.0,0.00059726,120]
[354577643,1740579669816,-787.39,0.00059726,120]
[354577644,1740579669885,-500.0,0.00059726,120]
[354577645,1740579669950,-504.7372326,0.00059726,120]
[354577646,1740579670015,-624.66,0.00059726,120]
[354577647,1740579670087,-500.0,0.00059726,120]
[354577648,1740579670150,-500.0,0.00059726,120]
[354577649,1740579670216,-500.0,0.00059726,120]
[354577650,1740579670282,-500.0,0.00059726,120]
[354577651,1740579670351,-500.0,0.00059726,120]
[354577652,1740579670422,-500.0,0.00059726,120]
[354577653,1740579670495,-869.77,0.00059726,120]
[354577654,1740579670567,-553.37,0.00059726,120]
[354577655,1740579670632,-500.0,0.00059726,120]
[354577656,1740579670703,-500.0,0.00059726,120]
[354577657,1740579670771,-1324.93,0.00059726,120]
[354577658,1740579670837,-2244.99,0.00059726,120]
[354577659,1740579670908,-500.0,0.00059726,120]
[354577660,1740579670980,-500.0,0.00059726,120]
[354577661,1740579671059,-735.89,0.00059726,120]
[354577662,1740579671136,-500.0,0.00059726,120]
[354577663,1740579671211,-1987.92,0.00059726,120]
[354577664,1740579671615,-1136.07,0.00059726,120]
[354577665,1740579671713,-6741.59,0.00059726,120]
[354577666,1740579671786,-500.0,0.00059726,120]
[354577667,1740579671857,-1535.0,0.00059726,120]
[354577668,1740579671927,-500.0,0.00059726,120]
[354577669,1740579671991,-500.0,0.00059726,120]
[354577670,1740579672059,-500.0,0.00059726,120]
[354577671,1740579672130,-3230.99,0.00059726,120]
[354577672,1740579672207,-500.0,0.00059726,120]
[354577673,1740579672283,-500.0,0.00059726,120]
[354577674,1740579672355,-500.0,0.00059726,120]
[354577675,1740579672439,-500.0,0.00059726,120]
[354577676,1740579672520,-500.0,0.00059726,120]
[354577677,1740579672598,-1064.14,0.00059726,120]
[354577678,1740579672679,-1022.62,0.00059726,120]
[354577679,1740579672792,-500.0,0.00059726,120]
[354577680,1740579673175,-845.76,0.00059726,120]
[354577681,1740579673506,-500.0,0.00059726,120]
[354577682,1740579673956,-500.0,0.00059726,120]
[354577683,1740579674200,-500.0,0.00059726,120]
[354577684,1740579674276,-500.0,0.00059726,120]
[354577685,1740579674351,-2771.91,0.00059726,120]
[354577686,1740579674430,-2624.58,0.00059726,120]
[354577687,1740579674503,-500.0,0.00059726,120]
[354577688,1740579674587,-500.0,0.00059726,120]
[354577689,1740579674660,-500.0,0.00059726,120]
[354577690,1740579674733,-500.0,0.00059726,120]
[354577691,1740579674803,-1009.17,0.00059726,120]
[354577692,1740579674876,-1166.29,0.00059726,120]
[354577693,1740579674949,-2777.04,0.00059726,120]
[354577694,1740579675023,-500.0,0.00059726,120]
[354577695,1740579675092,-500.0,0.00059726,120]
[354577696,1740579675169,-1012.55,0.00059726,120]
[354577697,1740579675240,-6876.2,0.00059726,120]
[354577698,1740579675308,-500.0,0.00059726,120]
[354577699,1740579675376,-3682.13,0.00059726,120]
[354577700,1740579675445,-500.0,0.00059726,120]
[354577701,1740579675513,-1100.74,0.00059726,120]
[354577702,1740579675580,-500.0,0.00059726,120]
[354577703,1740579675643,-3599.55,0.00059726,120]
[354577704,1740579675712,-1466.79,0.00059726,120]
[354577705,1740579675776,-1264.2,0.00059726,120]
[354577706,1740579675838,-500.0,0.00059726,120]
[354577707,1740579675893,-1431.5,0.00059726,120]
[354577708,1740579675952,-500.0,0.00059726,120]
[354577709,1740579676008,-500.0,0.00059726,120]
[354577710,1740579676070,-500.0,0.00059726,120]
[354577711,1740579676135,-2055.63,0.00059726,120]
[354577712,1740579676203,-14225.32,0.00059726,120]
[354577713,1740579676267,-528.11587061,0.00059726,120]
[354577714,1740579676333,-500.0,0.00059726,120]
[354577715,1740579676409,-500.0,0.00059726,120]
[354577716,1740579676479,-4066.64,0.00059726,120]
[354577717,1740579676549,-500.0,0.00059726,120]
[354577718,1740579676609,-500.0,0.00059726,120]
[354577719,1740579676677,-34729.86,0.00059726,120]
[354577720,1740579676738,-500.0,0.00059726,30]
[354577721,1740579676796,-500.0,0.00059726,120]
[354577722,1740579676856,-4019.24,0.00059726,120]
[354577723,1740579676917,-655.76,0.00059726,120]
[354577724,1740579676985,-738.32,0.00059726,120]
[354577725,1740579677049,-2088.55,0.00059726,120]
[354577726,1740579677150,-500.0,0.00059726,120]
[354577727,1740579677214,-3816.45,0.00059726,120]
[354577728,1740579677273,-500.0,0.00059726,30]
[354577729,1740579677334,-500.0,0.00059726,120]
[354577730,1740579677397,-1962.99,0.00059726,120]
[354577731,1740579677466,-500.0,0.00059726,120]
[354577732,1740579677529,-500.0,0.00059726,120]
[354577733,1740579677593,-435.53794733,0.00059726,120]
[354577734,1740579677660,-3669.62,0.00059726,120]
[354577735,1740579677719,-1000.0,0.00059726,120]
[354577736,1740579677781,-500.0,0.00059726,120]
[354577737,1740579677839,-500.0,0.00059726,120]
[354577738,1740579677899,-505.60370436,0.00059726,120]
[354577739,1740579677958,-500.0,0.00059726,120]
[354577740,1740579678018,-817.85,0.00059726,120]
[354577741,1740579678084,-651.11,0.00059726,120]
[354577742,1740579678150,-282.05821622,0.00059726,120]
[354577743,1740579678220,-500.0,0.00059726,120]
[354577744,1740579678286,-500.0,0.00059726,120]
[354577745,1740579678349,-580.26,0.00059726,120]
[354577746,1740579678425,-897.39,0.00059726,120]
[354577747,1740579678499,-500.0,0.00059726,120]
[354577748,1740579678570,-1027.36,0.00059726,120]
[354577749,1740579678641,-500.0,0.00059726,120]
[354577750,1740579678709,-2217.17,0.00059726,120]
[354577751,1740579678771,-4302.02,0.00059726,120]
[354577752,1740579678834,-500.0,0.00059726,120]
[354577753,1740579678894,-652.16,0.00059726,120]
[354577754,1740579678957,-500.0,0.00059726,120]
[354577755,1740579679017,-572.98,0.00059726,120]
[354577756,1740579679080,-1352.09,0.00059726,120]
[354577757,1740579679141,-500.0,0.00059726,120]
[354577758,1740579679208,-598.48,0.00059726,120]
[354577759,1740579679274,-1011.44,0.00059726,120]
[354577760,1740579679342,-2344.01,0.00059726,120]
[354577761,1740579679410,-17650.32,0.00059726,120]
[354577762,1740579679483,-10769.49,0.00059726,120]
[354577763,1740579679550,-1000.0,0.00059726,120]
[354577764,1740579679621,-500.0,0.00059726,120]
[354577765,1740579679687,-500.0,0.00059726,120]
[354577766,1740579679755,-500.0,0.00059726,120]
[354577767,1740579679813,-502.51,0.00059726,120]
[354577768,1740579679877,-1802.62,0.00059726,120]
[354577769,1740579679943,-500.0,0.00059726,120]
[354577770,1740579680004,-1386.87,0.00059726,120]
[354577771,1740579680064,-582.16823479,0.00059726,120]
[354577772,1740579680123,-505.46744743,0.00059726,120]
[354577773,1740579680186,-500.0,0.00059726,120]
[354577774,1740579680245,-1095.8,0.00059726,120]
[354577775,1740579680305,-500.0,0.00059726,120]
[354577776,1740579680370,-500.0,0.00059726,120]
[354577777,1740579680433,-595.63,0.00059726,120]
[354577778,1740579680499,-500.0,0.00059726,120]
[354577779,1740579680558,-5241.82,0.00059726,120]
[354577780,1740579680622,-595.81,0.00059726,120]
[354577781,1740579680678,-502.42472601,0.00059726,120]
[354577782,1740579680742,-1083.08,0.00059726,120]
[354577783,1740579680803,-690.75,0.00059726,120]
[354577784,1740579680861,-500.0,0.00059726,120]
[354577785,1740579680919,-500.0,0.00059726,120]
[354577786,1740579680977,-247.10550041,0.00059726,120]
[354577787,1740579681038,-782.75,0.00059726,120]
[354577788,1740579681095,-500.0,0.00059726,120]
[354577789,1740579681153,-500.0,0.00059726,120]
[354577790,1740579681211,-506.13602377,0.00059726,120]
[354577791,1740579681271,-2936.97,0.00059726,120]
[354577792,1740579681330,-3006.19,0.00059726,120]
[354577793,1740579681390,-601.08,0.00059726,120]
[354577794,1740579681451,-500.0,0.00059726,120]
[354577795,1740579681514,-500.0,0.00059726,120]
[354577796,1740579681577,-500.0,0.00059726,120]
[354577797,1740579681641,-2875.42,0.00059726,120]
[354577798,1740579681700,-328.45555557,0.00059726,120]
[354577799,1740579681766,-655.96,0.00059726,120]
[354577800,1740579681826,-151.0,0.00059945,120]
[354577801,1740579681887,-444.09,0.00059999,120]
[354577802,1740579681944,-250.0,0.00059999,120]
[354577803,1740579682000,-3601.0,0.0006,120]
[354577804,1740579682056,-18900.0,0.0006,30]
[354577805,1740579682114,-46022.68,0.0006,30]
[354577806,1740579682173,-2915.77,0.0006,30]
[354577807,1740579682229,-200.0,0.0006,120]
[354577808,1740579682287,-1000.0,0.00060088,120]
[354577809,1740579682341,-2000.0,0.00060273,120]
[354577810,1740579682399,-2000.0,0.00060273,120]
[354577811,1740579682462,-2000.0,0.00060273,120]
[354577812,1740579682520,-3601.0,0.00060274,120]
[354577813,1740579682579,-150.0,0.00060447,120]
[354577814,1740579682641,-396.0,0.00060447,120]
[354577815,1740579682705,-538.0,0.00060447,120]
[354577816,1740579682766,-1964.0,0.00060447,120]
[354577817,1740579682829,-2281.0,0.00060447,120]
[354577818,1740579682884,-3601.0,0.00060548,120]
[354577819,1740579682941,-3601.0,0.00060822,120]
[354577820,1740579682997,-18663.0,0.00061,120]
[354577821,1740579683052,-3090.0,0.00061,120]
[354577822,1740579683215,-254.026,0.00061056,120]
[354577823,1740579683281,-185.683,0.00061056,120]
[354577824,1740579683348,-3601.0,0.00061096,120]
[354577825,1740579683417,-3601.0,0.0006137,120]
[354577826,1740579683481,-1000.0,0.000615,120]
[354577827,1740579683541,-3601.0,0.00061644,120]
[354577828,1740579683603,-500.0,0.000617,120]
[354577829,1740579683664,-500.0,0.000617,120]
[354577830,1740579683724,-358.46,0.000617,30]